Cogmind - Beta 14 @@@ ROGUE MODE // 2024.08.14 @ 11:33:41 Player: Catfish Result: Destroyed by G-34 Mercenary with Small Laser Performance ------------- Evolutions (0) 0 Regions Visited (4) 800 Robots Destroyed (3) 15 Value Destroyed (78) 78 Prototype IDs (0) 0 Alien Tech Used (0) 0 Bonus (300) 300 TOTAL SCORE: 1193 Bonus ------- Aligned with FarCom 300 Cogmind --------- Core Integrity 0/250 Matter 300/300 Energy 99/100 System Corruption 0% Temperature Cool (15) Movement Rolling (80) Location -9/Mines Parts ------- > --- POWER (1) -------- (None) > --- PROPULSION (2) --- Wheel > --- UTILITY (2) ------ Small Storage Unit > --- WEAPON (2) ------- Axe > --- INVENTORY (8) ---- Light Ion Engine Flight Unit Advanced Weight Redist. System Machine Analyzer Assault Rifle Flak Cannon Rocket Launcher Datajack Peak State ------------ > --- POWER ------------ (None) > --- PROPULSION ------- Wheel Compact Wheel > --- UTILITY ---------- Small Storage Unit > --- WEAPON ----------- Light Assault Rifle Axe > --- INVENTORY -------- Light Ion Engine Flight Unit Advanced Weight Redist. System Machine Analyzer Assault Rifle Light Assault Rifle Grenade Launcher Datajack [Rating: 8] Favorites ----------- Power Light Ion Engine Engine Light Ion Engine Propulsion Wheel Wheel Wheel Utility Small Storage Unit Storage Small Storage Unit Weapon Light Assault Rifle Ballistic Gun Light Assault Rifle Slashing Weapon Axe Build | -11 -10 -10 -10 -9 ------- Run | Yrd Mat Min Exi Min Slots Evolved . | . . . . . Power . | . . . . . Propulsion . | . . . . . Utility . | . . . . . Weapon . | . . . . . Parts Attached 7 | 6 . 1 . . Power 1 | 1 . . . . Engine 1 | 1 . . . . Core . | . . . . . Reactor . | . . . . . Propulsion 2 | 2 . . . . Treads . | . . . . . Leg . | . . . . . Wheel 2 | 2 . . . . Hover . | . . . . . Flight . | . . . . . Utility 1 | 1 . . . . Device . | . . . . . Storage 1 | 1 . . . . Processor . | . . . . . Hackware . | . . . . . Protection . | . . . . . Artifact . | . . . . . Weapon 3 | 2 . 1 . . Energy Gun . | . . . . . Energy Cannon . | . . . . . Ballistic Gun 2 | 2 . . . . Ballistic Cannon . | . . . . . Launcher . | . . . . . Special Weapon . | . . . . . Impact Weapon . | . . . . . Slashing Weapon 1 | . . 1 . . Piercing Weapon . | . . . . . Special Melee Weapon . | . . . . . Unidentified Prototypes . | . . . . . Parts Lost 3 | . 1 . . 2 Power 1 | . 1 . . . Propulsion 1 | . . . . 1 Utility . | . . . . . Weapon 1 | . . . . 1 Highest Loss Streak 2 | . 1 . . 2 To Critical Strikes . | . . . . . Average Slot Usage (%) 70 | . 77 71 71 67 Wheel 27 | . 28 28 28 26 Storage 14 | . 14 14 14 14 Ballistic Gun 17 | . 28 21 14 12 Slashing Weapon 10 | . . 6 14 14 Peak Build Rating 8 | 6 6 8 8 8 Average Rating 7 | 4 5 6 8 7 On Entrance 5 | . 6 5 8 8 Naked Turns . | . . . . . Heaviest Build 10 | 10 10 9 9 9 Greatest Support 26 | 26 26 26 26 26 Greatest Overweight (x) 1 | 1 . . . . Average Overweight (x) . | . . . . . Largest Inventory Capacity 8 | 8 8 8 8 8 Average Capacity 7 | 7 8 8 8 8 Most Carried 8 | 4 4 8 8 8 Average Carried 6 | 1 3 5 8 8 Final Capacity 8 | 8 8 8 8 8 Final Carried 8 | 2 4 8 8 8 Class Distribution -------------------- 100% | Mutant Dominant Class ---------------- Mutant | -10/Materials Mutant | -10/Mines Mutant | -10/Exiles Mutant | -9/Mines Resources | -11 -10 -10 -10 -9 ----------- Run | Yrd Mat Min Exi Min Matter Collected 275 | 235 40 . . . Remotely . | . . . . . Salvage Created 96 | . 96 . . . Parts 6 | . 6 . . . Haulers Intercepted . | . . . . . Recyclers Shooed . | . . . . . Parts Field Recycled . | . . . . . Retrieved Matter . | . . . . . Parts Self-Destructed . | . . . . . Prevented . | . . . . . Kills | -11 -10 -10 -10 -9 ------- Run | Yrd Mat Min Exi Min Combat Hostiles Destroyed 3 | . 3 . . . Guns 3 | . 3 . . . Classes Destroyed 2 | . 2 . . . Swarmer 1 | . 1 . . . Grunt 2 | . 2 . . . Best Kill Streak 3 | . 3 . . . Combat Bots Only 3 | . 3 . . . Max Kills in Single Turn 1 | . 1 . . . Gunslinging . | . . . . . Exploded . | . . . . . Melee . | . . . . . Uniques/NPCs Destroyed . | . . . . . Combat | -11 -10 -10 -10 -9 -------- Run | Yrd Mat Min Exi Min Hostile Shots Fired 40 | . 25 . . 15 Missed 7 | . 4 . . 3 Damage Taken 527 | . 175 . . 352 Core 253 | . 48 . . 205 Absorbed by Shields . | . . . . . Core Remaining (%) 100 | 100 . . . . Volleys Fired 10 | . 10 . . . Largest 2 | . 2 . . . Hottest 40 | . 40 . . . Shots Fired 20 | . 20 . . . Gun 20 | . 20 . . . Cannon . | . . . . . Launcher . | . . . . . Special . | . . . . . Kinetic 20 | . 20 . . . Thermal . | . . . . . Explosive . | . . . . . Electromagnetic . | . . . . . Robot Hit Streak 5 | . 5 . . . Robot Miss Streak 3 | . 3 . . . Penetration Max . | . . . . . Secondary Targets . | . . . . . Shots Hit Robots 12 | . 12 . . . Core Hits 7 | . 7 . . . Critical Kills . | . . . . . Critical Parts Destroyed . | . . . . . Critical Strikes . | . . . . . Melee Attacks . | . . . . . Impact . | . . . . . Slashing . | . . . . . Piercing . | . . . . . Sneak Attacks . | . . . . . Combat Hostiles . | . . . . . Follow-up Attacks . | . . . . . Damage Inflicted 100 | . 100 . . . Guns 100 | . 100 . . . Cannons . | . . . . . Explosions . | . . . . . Melee . | . . . . . Ramming . | . . . . . Kinetic 100 | . 100 . . . Thermal . | . . . . . Explosive . | . . . . . Electromagnetic . | . . . . . Impact . | . . . . . Slashing . | . . . . . Piercing . | . . . . . Highest Corruption . | . . . . . Average Corruption . | . . . . . Corruption Purged . | . . . . . Corruption Blocked . | . . . . . Overload Shots . | . . . . . Overflow Damage . | . . . . . Projectiles . | . . . . . Explosions . | . . . . . Melee . | . . . . . Knockbacks . | . . . . . Impact . | . . . . . Kinetic . | . . . . . Secondary . | . . . . . Self-Inflicted Damage . | . . . . . Shots . | . . . . . Rammed . | . . . . . Targets Rammed . | . . . . . Kicked . | . . . . . Crushed . | . . . . . Highest Temperature 7 | . 7 . . . Average Temperature 5 | . 5 . . . Received Heat Transfer 51 | . 36 . . 15 Siege Activations . | . . . . . Robots Corrupted . | . . . . . Combat Hostiles . | . . . . . Parts Fried . | . . . . . Impact Corruptions . | . . . . . Robots Melted . | . . . . . Combat Hostiles . | . . . . . Parts Melted . | . . . . . Heat Transferred . | . . . . . Parts Sabotaged . | . . . . . Parts Stolen . | . . . . . Parts Stripped . | . . . . . Power Chain Reactions . | . . . . . Alert | -11 -10 -10 -10 -9 ------- Run | Yrd Mat Min Exi Min Peak Influence 65 | . 65 25 . 15 Initial 25 | . . 25 . . Average 15 | . 31 25 . 1 Maximum Alert Level . | . . . . . Low Security (%) 100 | 100 100 100 . 100 Level 1 . | . . . . . Level 2 . | . . . . . Level 3 . | . . . . . Level 4 . | . . . . . Level 5 . | . . . . . High Security . | . . . . . Max Security . | . . . . . Squads Dispatched 2 | . 2 . . . Investigation 1 | . 1 . . . Extermination . | . . . . . Reinforcement 1 | . 1 . . . Assault . | . . . . . Garrison . | . . . . . Intercept . | . . . . . Searches Triggered . | . . . . . Construction Impeded . | . . . . . Haulers Reinforced . | . . . . . Active Scanning Responses . | . . . . . Cargo Convoy Interrupts . | . . . . . Stealth | -11 -10 -10 -10 -9 --------- Run | Yrd Mat Min Exi Min Distress Signals . | . . . . . Communications Jammed . | . . . . . Distress Signals . | . . . . . Times Spotted 22 | . 7 . . 15 Peak Tracking Total 10 | . 5 . . 10 Tactical Retreats 1 | . . . . 1 Traps | -11 -10 -10 -10 -9 ------- Run | Yrd Mat Min Exi Min Traps Triggered 1 | . 1 . . . Indirectly . | . . . . . Trap Hack Attempts . | . . . . . Triggered . | . . . . . Disarmed . | . . . . . Reprogrammed . | . . . . . Reused . | . . . . . Traps Extracted . | . . . . . Installed . | . . . . . Triggered . | . . . . . Machines | -11 -10 -10 -10 -9 ---------- Run | Yrd Mat Min Exi Min Machines Disabled . | . . . . . Max in Single Turn . | . . . . . Machines Repaired . | . . . . . Machines Dismantled . | . . . . . Machines Sabotaged . | . . . . . Overloaded Fab Kills . | . . . . . Hacking | -11 -10 -10 -10 -9 --------- Run | Yrd Mat Min Exi Min Machines Accessed 6 | . . 2 4 . Terminals . | . . . . . Fabricators . | . . . . . Repair Stations . | . . . . . Recycling Units . | . . . . . Scanalyzers . | . . . . . Garrison Access . | . . . . . Total Hacks 29 | . . 2 27 . Successful 29 | . . 2 27 . Failed . | . . . . . Catastrophic . | . . . . . Database Lockouts . | . . . . . Manual 4 | . . . 4 . Terminals . | . . . . . Fabricators . | . . . . . Repair Stations . | . . . . . Recycling Units . | . . . . . Scanalyzers . | . . . . . Garrison Access . | . . . . . Terminal Hacks 29 | . . 2 27 . Record 27 | . . . 27 . Open Door 2 | . . 2 . . Fabricator Hacks . | . . . . . Repair Station Hacks . | . . . . . Recycling Unit Hacks . | . . . . . Scanalyzer . | . . . . . Garrison Access Hacks . | . . . . . Unauthorized Hacks . | . . . . . Terminals . | . . . . . Fabricators . | . . . . . Repair Stations . | . . . . . Recycling Units . | . . . . . Scanalyzers . | . . . . . Garrison Access . | . . . . . Data Cores Recovered . | . . . . . Used . | . . . . . Hacking Detections . | . . . . . Full Trace Events . | . . . . . Feedback Events . | . . . . . Feedback Blocked . | . . . . . Robot Schematics Acquired . | . . . . . Robots Built . | . . . . . Authchips . | . . . . . Time . | . . . . . Total Robot Build Rating . | . . . . . Part Schematics Acquired . | . . . . . Parts Built . | . . . . . Authchips . | . . . . . Time . | . . . . . Total Part Build Rating . | . . . . . Parts Repaired . | . . . . . Time . | . . . . . Parts Recycled . | . . . . . Recycled Matter . | . . . . . Retrieved Matter . | . . . . . Retrieved Components . | . . . . . Parts Scanalyzed . | . . . . . Part Schematics Acquired . | . . . . . Parts Damaged . | . . . . . Bothacking | -11 -10 -10 -10 -9 ------------ Run | Yrd Mat Min Exi Min Used RIF Installer . | . . . . . Robots Hacked . | . . . . . Non-combat . | . . . . . Combat . | . . . . . Robot Hacks Applied . | . . . . . Relay Couplers Released . | . . . . . Fabnet Peak Effective % . | . . . . . Robots Rewired . | . . . . . Allies Hacked . | . . . . . Hacks Repelled . | . . . . . Allies | -11 -10 -10 -10 -9 -------- Run | Yrd Mat Min Exi Min Total Allies 6 | . . 3 . 3 Largest Group 3 | . . 3 . 1 Highest-Rated Group 73 | . . 73 . 16 Highest-Rated Ally 31 | . . 31 . 16 Total Orders . | . . . . . Ally Attacks 3 | . . . . 3 Total Damage 42 | . . . . 42 Kills . | . . . . . Allies Corrupted . | . . . . . Allies Melted . | . . . . . Intel | -11 -10 -10 -10 -9 ------- Run | Yrd Mat Min Exi Min Robot Analysis Total . | . . . . . Derelict Logs Recovered 1 | . . . . 1 Drone Launches . | . . . . . Drone Recoveries . | . . . . . Exploration | -11 -10 -10 -10 -9 ------------- Run | Yrd Mat Min Exi Min Turns Passed 791 | 52 73 218 282 166 Spaces Moved 807 | 46 45 222 312 182 Core 7 | 7 . . . . Treads . | . . . . . Legs . | . . . . . Wheels 800 | 39 45 222 312 182 Hover . | . . . . . Flight . | . . . . . Fastest Speed 50 | 50 90 90 90 80 Average Speed 89 | 86 90 90 90 88 Slowest Speed 100 | 100 90 90 90 90 Overloaded Moves . | . . . . . Propulsion Burnouts . | . . . . . Robots Hopped . | . . . . . Cave-ins Triggered . | . . . . . Exploration Rate (%) 36 | 3 15 54 62 50 Regions Visited 4 Branch Regions 3 Pre-discovered Areas 2 | . . . 1 1 Known Exits Taken . | . . . . . Unknown Exits Taken 4 | 1 1 1 1 . Scrap Searched . | . . . . . Spaces Dug . | . . . . . Terrain Destroyed . | . . . . . Melee . | . . . . . Projectile . | . . . . . AOE . | . . . . . Terrain Rammed . | . . . . . Walls Destroyed . | . . . . . Machines Disabled . | . . . . . Actions | -11 -10 -10 -10 -9 --------- Run | Yrd Mat Min Exi Min Total 858 | 56 61 240 313 188 Wait 22 | . 5 12 1 4 Move 803 | 45 44 221 311 182 Hop . | . . . . . Pick Up 13 | 5 2 5 . 1 Fast Attach 3 | 3 . . . . Attach 3 | 3 . . . . Detach . | . . . . . Swap 1 | . . 1 . . Drop 2 | . . 1 . 1 Fire 10 | . 10 . . . Melee . | . . . . . Ram . | . . . . . Kick . | . . . . . Crush . | . . . . . Escape Stasis . | . . . . . Rewire 1 | . . . 1 . Trap . | . . . . . Miscellaneous . | . . . . . Route ------- -11/Scrapyard -10/Materials -10/Mines -10/Exiles -9/Mines (discovered 1 exit: [*Mat]) History --------- Turn | Location | Event 14 | -11/Scrapyard | Discovered new exit (range 16) 53 | -11/Scrapyard | Entered Materials 122 | -10/Materials | Discovered new exit (range 6) 126 | -10/Materials | Entered Mines 169 | -10/Mines | Found the Drone Emporium 184 | -10/Mines | Met a Derelict bent on vengeance 240 | -10/Mines | Met a Derelict who couldn't figure out how to use a Trap Extractor 301 | -10/Mines | Build established: Mutant 316 | -10/Mines | Received a Mining Laser from a helpful Derelict 340 | -10/Mines | Deemed a non-threat by the Exiles lab entrance 341 | -10/Mines | Discovered new exit (range 5) 344 | -10/Mines | Entered Exiles 366 | -10/Exiles | Met 8R-AWN 381 | -10/Exiles | Met EX-HEX 420 | -10/Exiles | Met EX-BIN 434 | -10/Exiles | Aligned with FarCom system 435 | -10/Exiles | Given EX-Vault access code 565 | -10/Exiles | Met EX-DEC 571 | -10/Exiles | Learned location of Zion (-7) 616 | -10/Exiles | Discovered new exit (range 14) 626 | -10/Exiles | Entered Mines 673 | -9/Mines | Found a hidden stash of uninstalled traps 725 | -9/Mines | Received a Rocket Launcher from a helpful Derelict 739 | -9/Mines | Assembled infested the area 773 | -9/Mines | Core integrity fell below 50% 774 | -9/Mines | Assisted by bots powering up and referring to "LRC-V3" 780 | -9/Mines | Core integrity fell below 20% 791 | -9/Mines | Discovered new exit (range 9) 792 | -9/Mines | Destroyed by G-34 Mercenary with Small Laser Last Messages --------------- command?" Trooper 2b: "Hello LRC-V3. What is your command?" Mercenary 2a destroyed. Trooper 2b destroyed. as-17946 destroyed. as-78047 destroyed. as-94158 destroyed. Lgt. Assault Rifle destroyed. D-53 Grenadier destroyed. The unstable cave ceiling collapses. Trooper 2a destroyed. Com. Wheel destroyed. as-91242 destroyed. D-53 Grenadier destroyed. The unstable cave ceiling collapses. K-01 Serf collects debris. as-23658 sneak attacks. K-01 Serf destroyed. EXIT=FOUND Map ----- +----------------------------------------------------+ | | | | | | | | | | | | | ?????????????????????????????????????????????????? | | ?????????????????????????????????????????????????? | | ???????????######????????????????????????????????? | | ###????????# #????????????????????????????????? | | ######???# #????????????????????????????????? | | ## ##### #????????????????????????????????? | | ] #????????????????????????????????? | | ###### #???????#####????????????????????? | | ##????# #??????## ##????####???????????? | | ##?????# #??????# #???## ##????????### | | ##########?### ##??????# ##?## ##??????# # | | ### # #???# #??????## ### #?????# | | #???# #?????## ## ##???? # | | % = ###?# ####### #### ##?## # | | [# ### ##??## ### #? | | % %= # #????# ### ### #?? | | # ! ######## #????# #?# #?## ##?? | | % ##?????######## ### #??# ##??? | | % % ##??????# r #?## ##???? | | =%####???# @ ### ##????? | | # ##!* ##### ########### ##????? | | ######## a #?????????# ##???? | | ## ##??????# #### #?????????## ##??? | | ?######???????# ##??# #??????????# #### | | ?????????????# ##???# #??????????# ## ## | | ??????????? ##????# g#??????????# ### | | ????????? #????? ??????????# #?# | | ???????? #????? ?????????# #?## | | ??????? #????? gg?????????# #??## & | | ??????? #????? < ????????# #???#### & | | ?????? #????# #???????# #??????## | | ????# #????# #???????# #???????## | | ????## ## #????# ?#???????# #????????? | | ?????# #?## #????#### ##????????# #????????? | | ?????# #???## ##???????? ?????????# #????????? | | ?????? ?????##?????????? ??????????# #????????? | | ?????????????????????????????????????# ###??????? | | ?????????????????????????????????????# ##?????? | | ?????????????????????????????????????# #?????? | | ?????????????????????????????????????## #?????? | | ???????????????????????????????????### #?????? | | ?????????????????????????????####### #?????? | | ?????????????????????????????# #????? | | ?????????????????????????????# ##### ## #? | +----------------------------------------------------+ Best States ------------- Heat Dissipation 25 Energy Generation 10 Energy Capacity 125 Matter Stores 300 Matter Capacity 300 Sight Range 16 Terrain Scan Density 10 Evasion (%) 44 Item Schematics ----------------- None Robot Schematics ------------------ None Fabricated ------------ Nothing Alien Tech Used ----------------- None Achievements -------------- None Challenges ------------ None Game ------ Seed RagnarokDefenseWheel Manual? 0 Play Time 00:11:59 Cumulative 6.6 hours Start 2024.08.14 @ 11:22:08 End 2024.08.14 @ 11:33:41 Sessions 1 Manual Loads 0 Difficulty Rogue Special Mode None Game No. 28 Rogue 28 Adventurer 0 Explorer 0 Win Type - Total 0 Types 0/0/0/0/0/0/0/0/0 Lore% 9 Gallery% 13 Achievement% 16 Wizard Run 0 Options --------- Layout 1 ASCII 0 Keyboard 0 Movement Numpad Keybinds 0 Fullscreen 2 Font 24/Smallcaps Map View 50x35 Zoom Use 0% Tactical HUD 0 Map Filters NONE Filters NONE Steam 1 RUN: 3496f039-e790-40bf-be6f-8fa6a1fb89d3